[Event "Early-Titled-Tuesday-Blitz-October-17-2023"]
[Site "Chess.com"]
[Date "2023.10.17"]
[Round "5"]
[White "Martial2008"]
[Black "ozates"]
[Result "1-0"]
[WhiteElo "2632"]
[BlackElo "2743"]
[TimeControl "180+1"]
[EndTime "8:57:54 PDT"]
[Termination "Martial2008 won on time"]

1. d4 {[%clk 0:02:56.7]} 1... Nf6 {[%clk 0:02:58]} 2. Nf3 {[%clk 0:02:47.9]}
2... b6 {[%clk 0:02:54]} 3. Bg5 {[%clk 0:02:42.7]} 3... Ne4 {[%clk 0:02:51.5]}
4. h4 {[%clk 0:02:40.9]} 4... Bb7 {[%clk 0:02:51.4]} 5. e3 {[%clk 0:02:38.8]}
5... h6 {[%clk 0:02:44]} 6. Bf4 {[%clk 0:02:37.9]} 6... e6 {[%clk 0:02:44]} 7.
Nbd2 {[%clk 0:02:37.2]} 7... Nxd2 {[%clk 0:02:41.2]} 8. Qxd2 {[%clk 0:02:38.1]}
8... d6 {[%clk 0:02:41.6]} 9. Bd3 {[%clk 0:02:37.8]} 9... Nd7 {[%clk 0:02:42]}
10. c3 {[%clk 0:02:36.5]} 10... Qe7 {[%clk 0:02:40.9]} 11. O-O-O {[%clk
0:02:31.8]} 11... e5 {[%clk 0:02:40.4]} 12. dxe5 {[%clk 0:02:29.6]} 12... dxe5
{[%clk 0:02:38.5]} 13. Nxe5 {[%clk 0:01:52.7]} 13... Nxe5 {[%clk 0:02:36.7]} 14.
Bxe5 {[%clk 0:01:53.6]} 14... Qxe5 {[%clk 0:01:47.5]} 15. Be4 {[%clk 0:01:47.4]}
15... Bd6 {[%clk 0:01:31.4]} 16. Bxb7 {[%clk 0:01:46.1]} 16... Rd8 {[%clk
0:01:32]} 17. Bc6+ {[%clk 0:01:45.3]} 17... Kf8 {[%clk 0:01:31.3]} 18. f4 {[%clk
0:01:38.1]} 18... Qc5 {[%clk 0:01:29.9]} 19. Bf3 {[%clk 0:01:36.1]} 19... a5
{[%clk 0:01:06.4]} 20. e4 {[%clk 0:01:31.6]} 20... g6 {[%clk 0:00:58.5]} 21. e5
{[%clk 0:01:28.7]} 21... Be7 {[%clk 0:00:58.6]} 22. Qe2 {[%clk 0:01:28.3]} 22...
Kg7 {[%clk 0:00:58.2]} 23. g3 {[%clk 0:01:27.4]} 23... a4 {[%clk 0:00:56.6]} 24.
a3 {[%clk 0:01:26]} 24... h5 {[%clk 0:00:49.2]} 25. Kb1 {[%clk 0:01:17.8]} 25...
Rxd1+ {[%clk 0:00:43.4]} 26. Rxd1 {[%clk 0:01:15.2]} 26... Rd8 {[%clk
0:00:44.3]} 27. Rxd8 {[%clk 0:01:08.9]} 27... Bxd8 {[%clk 0:00:45.2]} 28. Qd1
{[%clk 0:01:09.2]} 28... Be7 {[%clk 0:00:39.5]} 29. Qd4 {[%clk 0:01:09.1]} 29...
Qb5 {[%clk 0:00:36]} 30. Ka2 {[%clk 0:00:50.1]} 30... Qb3+ {[%clk 0:00:33.1]}
31. Ka1 {[%clk 0:00:50.2]} 31... Bc5 {[%clk 0:00:23.3]} 32. Qd2 {[%clk
0:00:42.9]} 32... Qc4 {[%clk 0:00:20.7]} 33. Bd5 {[%clk 0:00:29.8]} 33... Qf1+
{[%clk 0:00:19.3]} 34. Ka2 {[%clk 0:00:30.2]} 34... Qg1 {[%clk 0:00:16.2]} 35.
Qd3 {[%clk 0:00:12.6]} 35... Be3 {[%clk 0:00:09.6]} 36. e6 {[%clk 0:00:09.6]}
36... fxe6 {[%clk 0:00:10.3]} 37. Bxe6 {[%clk 0:00:10.5]} 37... Qxg3 {[%clk
0:00:10.8]} 38. Qd7+ {[%clk 0:00:10.5]} 38... Kh6 {[%clk 0:00:07.6]} 39. Qe8
{[%clk 0:00:10.7]} 39... Bd4 {[%clk 0:00:01.8]} 40. cxd4 {[%clk 0:00:10.4]} 1-0

[Event "Early-Titled-Tuesday-Blitz-October-17-2023"]
[Site "Chess.com"]
[Date "2023.10.17"]
[Round "5"]
[White "Langua_Chess"]
[Black "AnaKuchava"]
[Result "1-0"]
[WhiteElo "2495"]
[BlackElo "2263"]
[TimeControl "180+1"]
[EndTime "8:57:58 PDT"]
[Termination "Langua_Chess won by resignation"]

1. e4 {[%clk 0:03:00.9]} 1... c5 {[%clk 0:02:58.4]} 2. Nf3 {[%clk 0:02:57.9]}
2... d6 {[%clk 0:02:57]} 3. d4 {[%clk 0:02:57.4]} 3... cxd4 {[%clk 0:02:57.9]}
4. Nxd4 {[%clk 0:02:58.1]} 4... Nf6 {[%clk 0:02:49.8]} 5. Nc3 {[%clk 0:02:58.4]}
5... Nc6 {[%clk 0:02:48.4]} 6. Bg5 {[%clk 0:02:51]} 6... e6 {[%clk 0:02:48]} 7.
Bc4 {[%clk 0:02:41]} 7... a6 {[%clk 0:02:35.3]} 8. Bb3 {[%clk 0:02:36.8]} 8...
Qc7 {[%clk 0:02:29.7]} 9. O-O {[%clk 0:02:23.3]} 9... Be7 {[%clk 0:02:27.3]} 10.
Kh1 {[%clk 0:02:11]} 10... O-O {[%clk 0:02:25.8]} 11. f4 {[%clk 0:02:06.3]}
11... b5 {[%clk 0:02:25.3]} 12. Nxc6 {[%clk 0:01:59.2]} 12... Qxc6 {[%clk
0:02:26.2]} 13. e5 {[%clk 0:01:57.7]} 13... dxe5 {[%clk 0:01:44.1]} 14. fxe5
{[%clk 0:01:53.9]} 14... Bb7 {[%clk 0:01:08.6]} 15. Qe2 {[%clk 0:01:51.6]} 15...
b4 {[%clk 0:00:25]} 16. exf6 {[%clk 0:01:49.7]} 16... gxf6 {[%clk 0:00:23.4]}
17. Bh6 {[%clk 0:01:49.5]} 17... Kh8 {[%clk 0:00:20.5]} 18. Bxf8 {[%clk
0:01:35.1]} 18... Rxf8 {[%clk 0:00:21.4]} 19. Nd1 {[%clk 0:01:19.7]} 19... Rg8
{[%clk 0:00:20.8]} 20. Ne3 {[%clk 0:01:20.4]} 20... Bc5 {[%clk 0:00:20.3]} 21.
Rf3 {[%clk 0:01:14.5]} 21... Qb6 {[%clk 0:00:12.2]} 22. Raf1 {[%clk 0:00:58]}
22... Bxf3 {[%clk 0:00:11.3]} 23. Rxf3 {[%clk 0:00:56.4]} 23... f5 {[%clk
0:00:09.8]} 24. Nc4 {[%clk 0:00:44.9]} 24... Qc7 {[%clk 0:00:09.6]} 25. Qe5+
{[%clk 0:00:43.8]} 25... Qxe5 {[%clk 0:00:09.3]} 26. Nxe5 {[%clk 0:00:44.6]}
26... Rg7 {[%clk 0:00:05.2]} 27. Rg3 {[%clk 0:00:42]} 27... Rxg3 {[%clk
0:00:04.6]} 28. hxg3 {[%clk 0:00:41.2]} 28... Kg7 {[%clk 0:00:05.4]} 29. Nd3
{[%clk 0:00:28.3]} 29... Bd6 {[%clk 0:00:04.3]} 30. Kh2 {[%clk 0:00:29]} 30...
a5 {[%clk 0:00:04]} 31. Kh3 {[%clk 0:00:29]} 31... e5 {[%clk 0:00:04.2]} 32. Bd5
{[%clk 0:00:25]} 32... Kf6 {[%clk 0:00:04.2]} 33. Ne1 {[%clk 0:00:21.4]} 33...
e4 {[%clk 0:00:04.6]} 34. c3 {[%clk 0:00:20.4]} 34... bxc3 {[%clk 0:00:03.5]}
35. bxc3 {[%clk 0:00:21.3]} 35... Be5 {[%clk 0:00:03.8]} 36. c4 {[%clk
0:00:21.7]} 36... Bd4 {[%clk 0:00:04.2]} 37. Nc2 {[%clk 0:00:21.3]} 37... Bc5
{[%clk 0:00:04.6]} 38. g4 {[%clk 0:00:20.8]} 38... fxg4+ {[%clk 0:00:03.9]} 39.
Kxg4 {[%clk 0:00:20.7]} 39... Ke5 {[%clk 0:00:04]} 40. Bxf7 {[%clk 0:00:17.6]}
40... e3 {[%clk 0:00:04.4]} 41. Kf3 {[%clk 0:00:17.5]} 41... h6 {[%clk
0:00:03.5]} 42. Nxe3 {[%clk 0:00:17.3]} 42... Kd4 {[%clk 0:00:03.3]} 43. Nf5+
{[%clk 0:00:16.4]} 43... Kc3 {[%clk 0:00:04]} 44. Nxh6 {[%clk 0:00:17]} 44...
Kb2 {[%clk 0:00:04.5]} 45. a4 {[%clk 0:00:15.1]} 45... Ka3 {[%clk 0:00:04.6]}
46. Be8 {[%clk 0:00:15.8]} 1-0

[Event "Early-Titled-Tuesday-Blitz-October-17-2023"]
[Site "Chess.com"]
[Date "2023.10.17"]
[Round "5"]
[White "KatakuriDono"]
[Black "Maitreia"]
[Result "0-1"]
[WhiteElo "2397"]
[BlackElo "2696"]
[TimeControl "180+1"]
[EndTime "8:58:02 PDT"]
[Termination "Maitreia won by resignation"]

1. d4 {[%clk 0:03:00.9]} 1... Nf6 {[%clk 0:02:59.8]} 2. c4 {[%clk 0:03:01.2]}
2... e5 {[%clk 0:02:59.7]} 3. dxe5 {[%clk 0:02:59.6]} 3... Ng4 {[%clk 0:03:00]}
4. Nh3 {[%clk 0:03:00]} 4... Bb4+ {[%clk 0:02:58.4]} 5. Bd2 {[%clk 0:02:56]}
5... Bxd2+ {[%clk 0:02:58.2]} 6. Nxd2 {[%clk 0:02:54.1]} 6... Nxe5 {[%clk
0:02:59.1]} 7. Nf4 {[%clk 0:02:52.9]} 7... O-O {[%clk 0:02:54.1]} 8. e3 {[%clk
0:02:52.3]} 8... Ng6 {[%clk 0:02:52.8]} 9. Nxg6 {[%clk 0:02:46.7]} 9... hxg6
{[%clk 0:02:53.7]} 10. h4 {[%clk 0:02:46.1]} 10... d5 {[%clk 0:02:51]} 11. h5
{[%clk 0:02:43.1]} 11... Bf5 {[%clk 0:02:49.1]} 12. hxg6 {[%clk 0:02:36.3]}
12... Bxg6 {[%clk 0:02:40.3]} 13. Qg4 {[%clk 0:02:32]} 13... Re8 {[%clk
0:02:13.4]} 14. Qh3 {[%clk 0:02:17.2]} 14... f6 {[%clk 0:02:05.2]} 15. cxd5
{[%clk 0:02:11.4]} 15... Qd7 {[%clk 0:02:00.9]} 16. Qh4 {[%clk 0:01:58.7]} 16...
Kf7 {[%clk 0:01:53.5]} 17. Bc4 {[%clk 0:01:56.6]} 17... Qd6 {[%clk 0:01:52.3]}
18. Bb3 {[%clk 0:01:38.1]} 18... Nd7 {[%clk 0:01:50.8]} 19. Nc4 {[%clk
0:01:28.2]} 19... Qb4+ {[%clk 0:01:46.3]} 20. Ke2 {[%clk 0:01:28.4]} 20... Qb5
{[%clk 0:01:39]} 21. d6 {[%clk 0:01:17.9]} 21... Re4 {[%clk 0:01:33.1]} 22. Qh3
{[%clk 0:01:09.3]} 22... Ne5 {[%clk 0:01:06.9]} 23. Ke1 {[%clk 0:00:54]} 23...
Rxc4 {[%clk 0:01:01.5]} 24. Rc1 {[%clk 0:00:51.2]} 24... Nd3+ {[%clk 0:00:52.8]}
25. Ke2 {[%clk 0:00:43.5]} 25... Nxc1+ {[%clk 0:00:42.6]} 26. Rxc1 {[%clk
0:00:43.1]} 26... Qxb3 {[%clk 0:00:43.2]} 27. Qd7+ {[%clk 0:00:33.3]} 27... Kg8
{[%clk 0:00:39]} 28. axb3 {[%clk 0:00:29.8]} 28... Rxc1 {[%clk 0:00:38.3]} 29.
dxc7 {[%clk 0:00:30.1]} 29... Re8 {[%clk 0:00:19.6]} 30. Qd5+ {[%clk 0:00:23.9]}
30... Bf7 {[%clk 0:00:15.6]} 31. Qd7 {[%clk 0:00:23.9]} 31... a5 {[%clk
0:00:11.8]} 32. Kd2 {[%clk 0:00:23.9]} 32... Rc6 {[%clk 0:00:11.2]} 33. Ke1
{[%clk 0:00:20.9]} 33... Rc1+ {[%clk 0:00:10.5]} 34. Kd2 {[%clk 0:00:20.8]}
34... Rc5 {[%clk 0:00:11.4]} 35. Ke1 {[%clk 0:00:20.9]} 35... b5 {[%clk
0:00:11]} 36. g4 {[%clk 0:00:20.6]} 36... g5 {[%clk 0:00:10.6]} 37. f4 {[%clk
0:00:19.6]} 37... gxf4 {[%clk 0:00:10.7]} 38. Kf2 {[%clk 0:00:18.8]} 38... fxe3+
{[%clk 0:00:10.9]} 39. Ke2 {[%clk 0:00:19]} 39... Rc2+ {[%clk 0:00:10.9]} 40.
Ke1 {[%clk 0:00:18.7]} 40... e2 {[%clk 0:00:10.4]} 41. c8=Q {[%clk 0:00:03.7]}
41... Rcxc8 {[%clk 0:00:11.3]} 42. Qd2 {[%clk 0:00:02.8]} 42... Rcd8 {[%clk
0:00:11.4]} 43. Qxa5 {[%clk 0:00:02.4]} 43... Rd1+ {[%clk 0:00:11.8]} 44. Kf2
{[%clk 0:00:03.2]} 44... e1=Q+ {[%clk 0:00:12.4]} 45. Qxe1 {[%clk 0:00:03.9]}
45... Rdxe1 {[%clk 0:00:13.3]} 0-1

[Event "Early-Titled-Tuesday-Blitz-October-17-2023"]
[Site "Chess.com"]
[Date "2023.10.17"]
[Round "5"]
[White "TigrVShlyape"]
[Black "karinachess1"]
[Result "1/2-1/2"]
[WhiteElo "2831"]
[BlackElo "2614"]
[TimeControl "180+1"]
[EndTime "8:58:03 PDT"]
[Termination "Game drawn by repetition"]

1. d4 {[%clk 0:03:00.9]} 1... Nf6 {[%clk 0:02:59.5]} 2. Bf4 {[%clk 0:02:58.2]}
2... e6 {[%clk 0:02:58]} 3. e3 {[%clk 0:02:57.6]} 3... b6 {[%clk 0:02:52.3]} 4.
Nf3 {[%clk 0:02:56.9]} 4... Nh5 {[%clk 0:02:51]} 5. Bg5 {[%clk 0:02:53.3]} 5...
Be7 {[%clk 0:02:51.1]} 6. Bxe7 {[%clk 0:02:50.2]} 6... Qxe7 {[%clk 0:02:52]} 7.
c4 {[%clk 0:02:46]} 7... d6 {[%clk 0:02:41.9]} 8. Nc3 {[%clk 0:02:46]} 8... Nd7
{[%clk 0:02:38.8]} 9. Nd2 {[%clk 0:02:32.1]} 9... Nhf6 {[%clk 0:01:52.9]} 10.
Qf3 {[%clk 0:02:30.9]} 10... Rb8 {[%clk 0:01:30.4]} 11. Be2 {[%clk 0:02:17.3]}
11... Bb7 {[%clk 0:01:26.2]} 12. Qg3 {[%clk 0:02:17.4]} 12... O-O {[%clk
0:01:26.2]} 13. O-O {[%clk 0:02:17.4]} 13... a6 {[%clk 0:01:22]} 14. Rfe1 {[%clk
0:02:14.7]} 14... e5 {[%clk 0:01:20.2]} 15. Bf3 {[%clk 0:02:12.8]} 15... Bxf3
{[%clk 0:01:18.8]} 16. Qxf3 {[%clk 0:02:10.7]} 16... Rfe8 {[%clk 0:01:12]} 17.
Nb3 {[%clk 0:02:05.3]} 17... e4 {[%clk 0:01:03.8]} 18. Qe2 {[%clk 0:02:01.5]}
18... Nf8 {[%clk 0:00:53.4]} 19. c5 {[%clk 0:01:50.8]} 19... b5 {[%clk
0:00:46.7]} 20. Na5 {[%clk 0:01:46.7]} 20... Qd7 {[%clk 0:00:40.6]} 21. b4
{[%clk 0:01:37.6]} 21... Ng6 {[%clk 0:00:34.7]} 22. a4 {[%clk 0:01:34.7]} 22...
c6 {[%clk 0:00:26.9]} 23. axb5 {[%clk 0:01:32.8]} 23... axb5 {[%clk 0:00:27.2]}
24. d5 {[%clk 0:01:30.2]} 24... cxd5 {[%clk 0:00:21.7]} 25. c6 {[%clk
0:01:30.5]} 25... Qc7 {[%clk 0:00:20.7]} 26. Nxb5 {[%clk 0:01:29.8]} 26... Qb6
{[%clk 0:00:17.6]} 27. Nxd6 {[%clk 0:01:27.6]} 27... Re7 {[%clk 0:00:16.1]} 28.
Nf5 {[%clk 0:01:26.8]} 28... Ra7 {[%clk 0:00:15.5]} 29. Rec1 {[%clk 0:01:24]}
29... Ne5 {[%clk 0:00:14.3]} 30. Nd4 {[%clk 0:01:20.2]} 30... Nd3 {[%clk
0:00:14.3]} 31. Rd1 {[%clk 0:01:14.7]} 31... Nxb4 {[%clk 0:00:14.2]} 32. Nab3
{[%clk 0:01:10.2]} 32... Rxa1 {[%clk 0:00:14.4]} 33. Rxa1 {[%clk 0:01:09.7]}
33... Rc8 {[%clk 0:00:12.9]} 34. Rc1 {[%clk 0:01:03]} 34... Nd3 {[%clk 0:00:12]}
35. Rc2 {[%clk 0:01:00.8]} 35... h5 {[%clk 0:00:10.9]} 36. h3 {[%clk 0:01:00.8]}
36... g6 {[%clk 0:00:10.9]} 37. Rc3 {[%clk 0:00:58.7]} 37... Kg7 {[%clk
0:00:10.8]} 38. Qa2 {[%clk 0:00:47.8]} 38... Rc7 {[%clk 0:00:10.9]} 39. Qa5
{[%clk 0:00:46.3]} 39... Qxa5 {[%clk 0:00:10.6]} 40. Nxa5 {[%clk 0:00:46.2]}
40... Ne8 {[%clk 0:00:10.5]} 41. Nb5 {[%clk 0:00:45.8]} 41... Rc8 {[%clk
0:00:07.4]} 42. c7 {[%clk 0:00:46.1]} 42... Kf6 {[%clk 0:00:06.7]} 43. Nc6
{[%clk 0:00:33]} 43... Nxc7 {[%clk 0:00:06.9]} 44. Ncd4 {[%clk 0:00:32.3]} 44...
Nxb5 {[%clk 0:00:06.3]} 45. Rxc8 {[%clk 0:00:32.4]} 45... Nxd4 {[%clk
0:00:06.5]} 46. exd4 {[%clk 0:00:32.8]} 46... Nf4 {[%clk 0:00:06.7]} 47. Kf1
{[%clk 0:00:23.4]} 47... Ne6 {[%clk 0:00:06.8]} 48. Rc6 {[%clk 0:00:22.6]} 48...
Ke7 {[%clk 0:00:07.3]} 49. Ra6 {[%clk 0:00:21.7]} 49... Nxd4 {[%clk 0:00:07.6]}
50. Ra7+ {[%clk 0:00:22]} 50... Ke6 {[%clk 0:00:08.2]} 51. Ra6+ {[%clk
0:00:22.3]} 51... Ke5 {[%clk 0:00:08.7]} 52. Ra7 {[%clk 0:00:22.6]} 52... Ke6
{[%clk 0:00:08.6]} 53. Ra6+ {[%clk 0:00:22.3]} 53... Ke5 {[%clk 0:00:08.8]} 54.
Ra7 {[%clk 0:00:22.7]} 54... Ke6 {[%clk 0:00:09.4]} 1/2-1/2

[Event "Early-Titled-Tuesday-Blitz-October-17-2023"]
[Site "Chess.com"]
[Date "2023.10.17"]
[Round "5"]
[White "ajedrezhoy"]
[Black "dodoucb"]
[Result "0-1"]
[WhiteElo "2381"]
[BlackElo "2549"]
[TimeControl "180+1"]
[EndTime "8:58:05 PDT"]
[Termination "dodoucb won by checkmate"]

1. d4 {[%clk 0:03:00.9]} 1... Nf6 {[%clk 0:02:59.5]} 2. Nf3 {[%clk 0:03:00.5]}
2... e6 {[%clk 0:02:59.8]} 3. c4 {[%clk 0:02:58.5]} 3... Bb4+ {[%clk 0:02:58.8]}
4. Bd2 {[%clk 0:02:57]} 4... Qe7 {[%clk 0:02:58.3]} 5. g3 {[%clk 0:02:55]} 5...
b6 {[%clk 0:02:58.3]} 6. Bg2 {[%clk 0:02:54.8]} 6... Bb7 {[%clk 0:02:58.7]} 7.
O-O {[%clk 0:02:53.8]} 7... c5 {[%clk 0:02:58]} 8. dxc5 {[%clk 0:02:45.4]} 8...
bxc5 {[%clk 0:02:53.2]} 9. Nc3 {[%clk 0:02:44.1]} 9... O-O {[%clk 0:02:50.7]}
10. a3 {[%clk 0:02:34.7]} 10... Ba5 {[%clk 0:02:48.1]} 11. Nd5 {[%clk
0:02:12.8]} 11... exd5 {[%clk 0:02:40.5]} 12. Bxa5 {[%clk 0:02:12.7]} 12... dxc4
{[%clk 0:02:39.6]} 13. Nh4 {[%clk 0:01:54.2]} 13... Bxg2 {[%clk 0:02:34]} 14.
Kxg2 {[%clk 0:01:54]} 14... Nc6 {[%clk 0:02:26.6]} 15. Bc3 {[%clk 0:01:47.1]}
15... Rad8 {[%clk 0:02:20.7]} 16. e3 {[%clk 0:01:41.8]} 16... d5 {[%clk
0:02:18.9]} 17. Nf5 {[%clk 0:01:40.9]} 17... Qe4+ {[%clk 0:02:16.9]} 18. Qf3
{[%clk 0:01:41]} 18... d4 {[%clk 0:02:08.7]} 19. Bd2 {[%clk 0:01:13.8]} 19...
Qxf3+ {[%clk 0:02:01.4]} 20. Kxf3 {[%clk 0:01:13.4]} 20... Rfe8 {[%clk
0:01:59.9]} 21. Rac1 {[%clk 0:01:10.2]} 21... g6 {[%clk 0:01:56.7]} 22. Nh4
{[%clk 0:01:04.1]} 22... Ne4 {[%clk 0:01:50.3]} 23. Rfd1 {[%clk 0:00:58.3]}
23... f5 {[%clk 0:01:37.7]} 24. Kg2 {[%clk 0:00:54.8]} 24... Ne5 {[%clk
0:01:31.7]} 25. Ba5 {[%clk 0:00:46.3]} 25... Rd7 {[%clk 0:01:24.1]} 26. Nf3
{[%clk 0:00:43.8]} 26... Nd3 {[%clk 0:01:10.3]} 27. Rc2 {[%clk 0:00:34.1]} 27...
Ndxf2 {[%clk 0:01:05.9]} 28. Rxf2 {[%clk 0:00:23.9]} 28... Nxf2 {[%clk
0:00:54.2]} 29. Kxf2 {[%clk 0:00:24]} 29... Rxe3 {[%clk 0:00:54.3]} 30. Bd2
{[%clk 0:00:21.3]} 30... Rb3 {[%clk 0:00:52.4]} 31. Bc1 {[%clk 0:00:19.8]} 31...
Re7 {[%clk 0:00:49.2]} 32. Nd2 {[%clk 0:00:18.7]} 32... Rd3 {[%clk 0:00:47.7]}
33. Rf1 {[%clk 0:00:18.7]} 33... c3 {[%clk 0:00:44.7]} 34. bxc3 {[%clk
0:00:18.7]} 34... Rxc3 {[%clk 0:00:45]} 35. Nf3 {[%clk 0:00:18.5]} 35... Rc2+
{[%clk 0:00:43.1]} 36. Kg1 {[%clk 0:00:18.8]} 36... Ree2 {[%clk 0:00:42.5]} 37.
Bh6 {[%clk 0:00:18]} 37... d3 {[%clk 0:00:34.7]} 38. Ne1 {[%clk 0:00:17.5]}
38... Rc3 {[%clk 0:00:27.2]} 39. Nf3 {[%clk 0:00:17.3]} 39... c4 {[%clk
0:00:24.1]} 40. Rb1 {[%clk 0:00:16.6]} 40... Rb3 {[%clk 0:00:22.7]} 41. Rc1
{[%clk 0:00:16]} 41... Rc2 {[%clk 0:00:23.1]} 42. Rd1 {[%clk 0:00:15.8]} 42...
Rbb2 {[%clk 0:00:18.9]} 43. Re1 {[%clk 0:00:13.7]} 43... Re2 {[%clk 0:00:18.8]}
44. Rc1 {[%clk 0:00:13.3]} 44... Rbc2 {[%clk 0:00:11.8]} 45. Rb1 {[%clk
0:00:13.2]} 45... c3 {[%clk 0:00:11.6]} 46. Ng5 {[%clk 0:00:10.7]} 46... Re8
{[%clk 0:00:10]} 47. Rb7 {[%clk 0:00:08.4]} 47... Re1# {[%clk 0:00:09.7]} 0-1

[Event "Early-Titled-Tuesday-Blitz-October-17-2023"]
[Site "Chess.com"]
[Date "2023.10.17"]
[Round "5"]
[White "eljanov"]
[Black "Aswathchess"]
[Result "1/2-1/2"]
[WhiteElo "2861"]
[BlackElo "2658"]
[TimeControl "180+1"]
[EndTime "8:58:07 PDT"]
[Termination "Game drawn by agreement"]

1. d4 {[%clk 0:03:00.9]} 1... d5 {[%clk 0:02:55.3]} 2. Nf3 {[%clk 0:02:58]} 2...
Nf6 {[%clk 0:02:54.1]} 3. Bf4 {[%clk 0:02:58.3]} 3... c5 {[%clk 0:02:45.4]} 4.
e3 {[%clk 0:02:58.4]} 4... Nc6 {[%clk 0:02:46]} 5. Nbd2 {[%clk 0:02:59]} 5...
Nh5 {[%clk 0:02:46.5]} 6. dxc5 {[%clk 0:02:52.6]} 6... Nxf4 {[%clk 0:02:46.4]}
7. exf4 {[%clk 0:02:53.1]} 7... Qa5 {[%clk 0:02:46.4]} 8. c4 {[%clk 0:02:41.8]}
8... e6 {[%clk 0:02:43.8]} 9. a3 {[%clk 0:02:36.3]} 9... dxc4 {[%clk 0:02:40.6]}
10. Bxc4 {[%clk 0:02:35.9]} 10... Qxc5 {[%clk 0:02:40.1]} 11. O-O {[%clk
0:02:35.1]} 11... Be7 {[%clk 0:02:37.5]} 12. Rc1 {[%clk 0:02:27.7]} 12... Qd6
{[%clk 0:02:36.5]} 13. g3 {[%clk 0:02:27]} 13... O-O {[%clk 0:02:36.4]} 14. Qe2
{[%clk 0:02:24.8]} 14... Nd4 {[%clk 0:02:21.8]} 15. Nxd4 {[%clk 0:02:08.2]}
15... Qxd4 {[%clk 0:02:22.7]} 16. Nf3 {[%clk 0:02:08.9]} 16... Qb6 {[%clk
0:02:01.4]} 17. Rfd1 {[%clk 0:02:08.9]} 17... Rd8 {[%clk 0:01:54.5]} 18. f5
{[%clk 0:02:06.3]} 18... Rxd1+ {[%clk 0:01:49.1]} 19. Rxd1 {[%clk 0:02:06.1]}
19... Bf6 {[%clk 0:01:46.9]} 20. b4 {[%clk 0:01:56]} 20... h6 {[%clk 0:01:30]}
21. fxe6 {[%clk 0:01:49]} 21... Bxe6 {[%clk 0:01:28]} 22. Bxe6 {[%clk
0:01:48.2]} 22... fxe6 {[%clk 0:01:28.3]} 23. Qe4 {[%clk 0:01:25.2]} 23... Rf8
{[%clk 0:01:24.4]} 24. Rd7 {[%clk 0:01:18.3]} 24... Rf7 {[%clk 0:01:19.6]} 25.
Rxf7 {[%clk 0:01:18.1]} 25... Kxf7 {[%clk 0:01:20.5]} 26. a4 {[%clk 0:01:14.4]}
26... Qc6 {[%clk 0:01:17.3]} 27. Ne5+ {[%clk 0:00:34.6]} 27... Bxe5 {[%clk
0:01:15.5]} 28. Qxe5 {[%clk 0:00:35.5]} 28... Qxa4 {[%clk 0:01:02.8]} 29. Qc7+
{[%clk 0:00:35.4]} 29... Kf6 {[%clk 0:00:57.7]} 30. Qxb7 {[%clk 0:00:35.7]}
30... Qd1+ {[%clk 0:00:56.8]} 31. Kg2 {[%clk 0:00:36.1]} 31... Qd5+ {[%clk
0:00:50.5]} 32. Qxd5 {[%clk 0:00:36]} 32... exd5 {[%clk 0:00:51.4]} 33. Kf3
{[%clk 0:00:36.7]} 33... g5 {[%clk 0:00:50.8]} 34. Ke3 {[%clk 0:00:35.1]} 34...
Ke5 {[%clk 0:00:42.5]} 35. f4+ {[%clk 0:00:21]} 35... gxf4+ {[%clk 0:00:41.2]}
36. gxf4+ {[%clk 0:00:21.9]} 36... Kf5 {[%clk 0:00:34.1]} 37. Kd4 {[%clk
0:00:22]} 37... Kxf4 {[%clk 0:00:32]} 38. Kxd5 {[%clk 0:00:21.2]} 38... h5
{[%clk 0:00:18.4]} 39. Kc6 {[%clk 0:00:21]} 39... Ke5 {[%clk 0:00:15.8]} 40. Kb7
{[%clk 0:00:19.7]} 40... Kd5 {[%clk 0:00:15.5]} 41. Kxa7 {[%clk 0:00:16.5]}
41... Kc4 {[%clk 0:00:15.7]} 42. Kb6 {[%clk 0:00:16.8]} 42... Kxb4 {[%clk
0:00:16]} 43. h4 {[%clk 0:00:16.5]} 43... Kc4 {[%clk 0:00:16.2]} 44. Kc6 {[%clk
0:00:16.9]} 44... Kd4 {[%clk 0:00:16.7]} 45. Kd6 {[%clk 0:00:17.1]} 45... Ke4
{[%clk 0:00:17.3]} 46. Kc5 {[%clk 0:00:16.8]} 46... Ke5 {[%clk 0:00:15.9]} 47.
Kc4 {[%clk 0:00:16.9]} 47... Kf4 {[%clk 0:00:16.4]} 48. Kd4 {[%clk 0:00:17.2]}
48... Kg3 {[%clk 0:00:16.8]} 49. Ke3 {[%clk 0:00:17.4]} 49... Kxh4 {[%clk
0:00:17.3]} 50. Kf2 {[%clk 0:00:17.1]} 1/2-1/2